bitfinex-derivatives/quotes_SOLF0:USTF0_20250117
["timestamp","ask_amount","ask_price","bid_price","bid_amount"]
[1737082502711,16.77810128,212.46,212.32,11.69810128]
[1737082504217,11.69810128,212.43,212.31,3.0461]
[1737082504511,4.7098,212.36,212.31,3.0461]
[1737082505013,4.7098,212.36,212.31,7.7569]
[1737082505614,4.7091,212.39,212.32,11.69810128]
[1737082506116,4.7088,212.4,212.34,4.7101]
[1737082506317,4.7088,212.4,212.32,11.69810128]
[1737082507215,4.7088,212.4,212.33,4.7103]
[1737082508318,16.77810128,212.46,212.32,11.69810128]
[1737082508517,4.7093,212.38,212.32,11.69810128]
[1737082509319,16.77810128,212.46,212.32,11.69810128]
[1737082509518,140.27753013,212.54,212.35,11.69810128]
[1737082509519,11.69810128,212.49,212.35,11.69810128]
[1737082509819,16.77810128,212.49,212.38,11.69810128]
[1737082510018,5.08,212.49,212.38,11.69810128]
[1737082510215,5.08,212.52,212.41,11.69810128]
[1737082511121,5.08,212.52,212.41,16.40660128]
[1737082511516,4.707,212.48,212.38,16.40730128]
[1737082511722,5.08,212.52,212.38,16.40730128]
[1737082512025,11.69810128,212.51,212.38,11.69810128]
[1737082512827,11.69810128,212.51,212.37,4.7094]
[1737082513919,4.7073,212.47,212.37,4.7094]
[1737082514121,11.69810128,212.51,212.37,4.7094]
[1737082514615,11.69810128,212.51,212.38,4.7092]
[1737082515015,11.69810128,212.51,212.35,11.69810128]
[1737082515218,4.7083,212.42,212.36,4.7095]
[1737082515415,4.7083,212.42,212.35,11.69810128]
[1737082516120,4.7083,212.42,212.37,4.7093]
[1737082517131,5.08,212.44,212.32,11.69810128]
[1737082517826,4.7091,212.39,212.33,4.7103]
[1737082519529,5.08,212.44,212.32,11.69810128]
[1737082519833,5.08,212.47,212.35,11.69810128]
[1737082520329,4.7085,212.42,212.36,4.7096]
[1737082520527,5.08,212.47,212.36,4.7096]
[1737082521525,5.08,212.47,212.31,3.0461]
[1737082521526,11.69810128,212.45,212.32,16.40850128]
[1737082521926,11.69810128,212.45,212.32,11.69810128]
[1737082522140,4.7093,212.38,212.33,4.7102]
[1737082522330,11.69810128,212.45,212.31,3.0461]
[1737082522530,4.7097,212.37,212.31,7.7569]
[1737082522731,11.69810128,212.42,212.31,3.0461]
[1737082523230,4.7101,212.35,212.31,3.0461]
[1737082523535,11.69810128,212.42,212.31,3.0461]
[1737082524334,4.7099,212.35,212.31,3.0461]
[1737082528637,11.69810128,212.42,212.31,3.0461]
[1737082529238,11.69810128,212.45,212.32,11.69810128]
[1737082529639,4.7094,212.38,212.33,4.7102]
[1737082530539,4.7095,212.37,212.32,11.69810128]
[1737082533039,4.7092,212.39,212.33,4.7103]
[1737082533239,5.08,212.46,212.35,11.69810128]
[1737082533539,5.08,212.47,212.35,11.69810128]
[1737082533738,4.7085,212.42,212.36,4.7094]
[1737082533940,5.08,212.47,212.36,4.7094]
[1737082534148,4.7083,212.43,212.37,4.7092]
[1737082534340,60.88468128,212.49,212.38,11.69810128]
[1737082534843,4.7077,212.45,212.4,4.7087]
[1737082535041,60.88468128,212.49,212.38,11.69810128]
[1737082535237,60.88468128,212.49,212.35,11.69810128]
[1737082535432,60.88468128,212.49,212.36,4.7095]
[1737082536045,4.7085,212.42,212.36,4.7095]
[1737082536433,4.7092,212.39,212.33,4.7103]
[1737082537941,11.69810128,212.45,212.32,11.69810128]
[1737082538138,4.7095,212.37,212.32,11.69810128]
[1737082538737,4.7095,212.37,212.32,4.7105]
[1737082539940,4.7089,212.4,212.35,4.7098]
[1737082540341,5.08,212.44,212.35,11.69810128]
[1737082541344,5.08,212.44,212.38,11.69810128]
[1737082541638,5.08,212.44,212.35,11.69810128]
[1737082541946,5.08,212.44,212.32,11.69810128]
[1737082543242,60.88468128,212.49,212.39,11.69810128]
[1737082544346,4.7075,212.46,212.39,16.40690128]
[1737082545850,60.88468128,212.49,212.45,11.69810128]
[1737082546050,60.88468128,212.49,212.42,11.69810128]
[1737082546744,60.88468128,212.49,212.39,11.69810128]
[1737082547348,4.7079,212.44,212.39,11.69810128]
[1737082549153,4.7079,212.44,212.39,16.40710128]
[1737082554358,4.7075,212.46,212.39,16.40710128]
[1737082555358,4.7075,212.46,212.39,4.709]
[1737082555661,4.7075,212.46,212.4,4.7086]
[1737082559159,4.7075,212.46,212.36,11.69810128]
[1737082559358,4.7075,212.46,212.41,4.7085]
[1737082560859,4.7078,212.45,212.4,7.49505668]
[1737082562058,4.7078,212.45,212.4,12.20375668]
[1737082562365,60.88468128,212.49,212.44,7.49505668]
[1737082562564,60.88468128,212.49,212.44,12.20285668]
[1737082563557,4.7071,212.48,212.44,12.20285668]
[1737082564356,60.88468128,212.49,212.46,7.49505668]
[1737082564562,60.88468128,212.49,212.48,7.49505668]
[1737082564763,7.49505668,212.56,212.48,7.49505668]
[1737082564953,4.7059,212.53,212.5,7.49505668]
[1737082565960,7.49505668,212.58,212.52,7.49505668]
[1737082566159,126.12753013,212.66,212.57,7.49505668]
[1737082566356,126.12753013,212.67,212.49,5.08]
[1737082566563,7.49505668,212.64,212.56,7.49505668]
[1737082566763,4.7043,212.6,212.56,7.49505668]
[1737082567364,4.7043,212.6,212.52,11.6944966]
[1737082567765,4.7043,212.6,212.55,11.6944966]
[1737082569262,11.6944966,212.62,212.51,1.43]
[1737082569660,4.7041,212.62,212.54,16.4000966]
[1737082569870,11.6944966,212.65,212.54,11.6944966]
[1737082570264,4.7053,212.56,212.51,13.1244966]
[1737082570468,11.6944966,212.62,212.51,1.43]
[1737082571663,4.7055,212.55,212.51,1.43]
[1737082571869,5.06,212.58,212.45,16.4019966]
[1737082572261,4.7068,212.49,212.45,11.6944966]
[1737082572570,11.6944966,212.55,212.44,3.0112]
[1737082572969,4.7066,212.5,212.45,4.7076]
[1737082573165,11.6944966,212.55,212.44,3.0112]
[1737082573364,11.6944966,212.55,212.42,11.6944966]
[1737082573767,24.61268674,212.55,212.42,16.4027966]
[1737082573960,11.6944966,212.55,212.42,16.4027966]
[1737082574167,4.7069,212.49,212.43,4.7081]
[1737082575073,4.707,212.48,212.43,4.7081]
[1737082575970,4.707,212.48,212.42,11.6944966]
[1737082576568,12.92395049,212.54,212.4,11.6944966]
[1737082576774,4.7077,212.45,212.38,11.6944966]
[1737082577073,11.6944966,212.52,212.39,4.7088]
[1737082577273,4.7072,212.47,212.38,11.6944966]
[1737082577870,4.707,212.49,212.41,11.6944966]
[1737082578070,11.6944966,212.56,212.41,11.6944966]
[1737082578571,24.62521374,212.56,212.41,11.6944966]
[1737082578771,12.93071714,212.55,212.41,11.6944966]
[1737082579171,4.707,212.48,212.42,6.1801]
[1737082579377,12.93071714,212.55,212.42,1.4718]
[1737082579568,12.93071714,212.55,212.44,11.6944966]
[1737082579770,4.7066,212.5,212.44,16.4022966]
[1737082580372,4.7068,212.49,212.44,11.6944966]
[1737082584078,4.7068,212.49,212.44,16.4023966]
[1737082585174,4.7065,212.51,212.45,4.7076]
[1737082585377,11.6944966,212.56,212.45,4.7076]
[1737082585676,4.7065,212.51,212.45,4.7076]
[1737082586179,11.6944966,212.56,212.44,11.6944966]
[1737082587079,4.7066,212.5,212.44,16.4023966]
[1737082587478,11.6944966,212.56,212.44,11.6944966]
[1737082587680,4.7072,212.48,212.44,11.6944966]
[1737082589378,5.06,212.6,212.47,7.48976021]
[1737082589573,7.48976021,212.56,212.49,7.48976021]
[1737082589971,4.7064,212.51,212.49,7.48976021]
[1737082591371,4.7064,212.51,212.46,16.40808884]
[1737082591775,4.7066,212.5,212.46,11.70068884]
[1737082592879,12.93706152,212.59,212.46,11.70068884]
[1737082593076,5.55868589,212.59,212.49,11.70068884]
[1737082593280,10.61920126,212.61,212.49,11.70068884]
[1737082593477,4.7052,212.57,212.51,4.7063]
[1737082593677,4.7052,212.57,212.49,11.70068884]
[1737082594078,8.0606,212.63,212.49,11.70068884]
[1737082595187,13.61776447,212.63,212.49,11.70068884]
[1737082595583,19.07861356,212.63,212.52,4.7061]
[1737082595780,7.37868082,212.62,212.52,4.7061]
[1737082595981,12.93584529,212.62,212.52,4.7061]
[1737082596985,5.55716447,212.62,212.52,4.7061]
[1737082597181,11.70068884,212.62,212.49,16.40728884]
[1737082597384,24.63653413,212.62,212.49,11.70068884]
[1737082597581,12.93584529,212.61,212.49,11.70068884]
[1737082597782,4.7059,212.53,212.49,11.70068884]
[1737082598183,4.7061,212.52,212.48,4.7068]
[1737082598887,4.7066,212.5,212.46,11.70068884]
[1737082599083,4.7066,212.5,212.45,4.7076]
[1737082599084,11.70068884,212.56,212.43,2.9887]
[1737082599584,4.7069,212.49,212.43,7.6966]
[1737082601190,4.7069,212.49,212.44,16.40848884]
[1737082601786,11.70068884,212.59,212.44,11.70068884]
[1737082602285,4.706,212.53,212.47,16.40768884]
[1737082602487,4.706,212.53,212.47,11.70068884]
[1737082602988,4.7064,212.51,212.47,11.70068884]
[1737082603791,4.7068,212.5,212.44,16.40848884]
[1737082603983,12.93470684,212.58,212.44,11.70068884]
[1737082604185,11.70068884,212.56,212.44,11.70068884]
[1737082605395,4.707,212.49,212.44,11.70068884]
[1737082605691,11.70068884,212.56,212.44,11.70068884]
[1737082605891,4.7077,212.45,212.42,1.4718]
[1737082609395,4.7077,212.45,212.41,11.70068884]
[1737082612898,11.70068884,212.53,212.38,11.70068884]
[1737082613097,11.70068884,212.53,212.38,16.40968884]
[1737082613498,24.66018834,212.53,212.38,16.40968884]
[1737082613699,4.708,212.44,212.38,16.40968884]
[1737082614897,11.70068884,212.5,212.38,11.70068884]
[1737082615400,7.49580853,212.46,212.39,7.49580853]
[1737082616100,4.7086,212.41,212.39,7.49580853]
[1737082618300,4.7086,212.41,212.37,7.49580853]
[1737082625898,4.7086,212.41,212.39,7.49580853]
[1737082626100,4.7081,212.43,212.39,7.49580853]
[1737082627202,4.7083,212.42,212.39,7.49580853]
[1737082628607,7.49580853,212.47,212.41,7.49580853]
[1737082628806,5.06,212.48,212.41,7.49580853]
[1737082629203,8.17656647,212.53,212.41,21.06]
[1737082629508,152.41228133,212.63,212.53,7.49580853]
[1737082629816,152.41228133,212.63,212.62,7.49580853]
[1737082630213,4.7025,212.69,212.62,7.49580853]
[1737082630414,7.49580853,212.71,212.62,7.49580853]
[1737082631011,4.7032,212.66,212.5,4.7065]
[1737082631212,7.49580853,212.65,212.57,7.49580853]
[1737082631811,7.49580853,212.63,212.55,7.49580853]
[1737082633218,4.7044,212.6,212.55,7.49580853]
[1737082633419,4.7044,212.6,212.52,16.39931741]
[1737082633818,16.75321741,212.67,212.52,11.69321741]
[1737082634017,4.704,212.62,212.53,4.7059]
[1737082635719,4.704,212.62,212.55,11.69321741]
[1737082637724,4.704,212.62,212.54,4.7056]
[1737082638523,4.704,212.62,212.55,4.7054]
[1737082640330,14.15,212.87,212.59,11.69321741]
[1737082640631,3.0463,212.79,212.68,11.69321741]
[1737082641129,4.7004,212.78,212.68,11.69321741]
[1737082641318,3.0463,212.79,212.68,11.69321741]
[1737082642225,3.0463,212.79,212.72,4.7016]
[1737082643024,7.7465,212.79,212.72,4.7016]
[1737082643429,3.0463,212.79,212.72,4.7016]
[1737082643623,1.5476,212.79,212.72,4.7016]
[1737082644829,6.2477,212.79,212.72,4.7016]
[1737082647928,1.5476,212.79,212.72,4.7016]
[1737082648228,4.7004,212.78,212.72,4.7016]
[1737082650725,4.7004,212.78,212.71,11.69321741]
[1737082650925,6.1649,212.8,212.74,11.69321741]
[1737082651330,1.4648,212.8,212.74,11.69321741]
[1737082651530,4.7002,212.79,212.74,16.39441741]
[1737082651727,4.7002,212.79,212.74,11.69321741]
[1737082652325,4.7004,212.78,212.72,4.7015]
[1737082653126,4.7004,212.78,212.71,11.69321741]
[1737082653325,6.1649,212.8,212.73,4.7014]
[1737082655336,4.7002,212.79,212.75,7.4703645]
[1737082656940,4.7004,212.78,212.75,7.4703645]
[1737082659439,4.7004,212.78,212.77,7.4703645]
[1737082660140,1.5155,212.82,212.77,7.4703645]
[1737082660340,1.5155,212.82,212.79,7.4703645]
[1737082661043,1.5155,212.82,212.77,7.4703645]
[1737082662439,4.7003,212.79,212.77,7.4703645]
[1737082664339,6.5304,212.85,212.77,7.4703645]
[1737082664543,6.5304,212.85,212.79,7.4703645]
[1737082664841,4.6997,212.81,212.79,7.4703645]
[1737082665343,6.5304,212.85,212.79,7.4703645]
[1737082665542,4.6999,212.8,212.77,7.4703645]
[1737082666939,7.4703645,212.83,212.64,5.06]
[1737082667138,4.7004,212.78,212.75,7.4703645]
[1737082667639,7.4703645,212.83,212.75,7.4703645]
[1737082667842,7.4703645,212.81,212.73,7.4703645]
[1737082668643,4.701,212.76,212.73,7.4703645]
[1737082669549,4.7005,212.78,212.73,7.4703645]
[1737082670044,7.4703645,212.81,212.73,7.4703645]
[1737082671148,4.7006,212.77,212.73,7.4703645]
[1737082672543,4.7006,212.77,212.75,7.4703645]
[1737082672741,1.4704,212.85,212.75,7.4703645]
[1737082672952,1.4704,212.85,212.78,7.4703645]
[1737082673342,8.9407645,212.85,212.78,7.4703645]
[1737082673649,4.6996,212.82,212.78,7.4703645]
[1737082674548,4.6993,212.83,212.78,7.4703645]
[1737082674750,1.4704,212.85,212.78,7.4703645]
[1737082675948,4.6997,212.82,212.78,7.4703645]
[1737082676846,4.6997,212.82,212.68,30.64992838]
[1737082676847,4.6985,212.87,212.81,4.6995]
[1737082677044,4.6985,212.87,212.85,7.4703645]
[1737082678159,4.699,212.84,212.78,1.5402]
[1737082678348,7.4703645,212.88,212.8,7.4703645]
[1737082679248,9.4665,212.96,212.8,7.4703645]
[1737082679451,4.6985,212.87,212.82,7.4703645]
[1737082679756,7.4703645,212.88,212.82,7.4703645]
[1737082680355,7.4703645,212.88,212.8,7.4703645]
[1737082680557,7.4703645,212.86,212.72,6.49790193]
[1737082680757,4.7002,212.79,212.77,7.4703645]
[1737082681054,7.4703645,212.86,212.77,7.4703645]
[1737082681253,4.6992,212.84,212.77,7.4703645]
[1737082681458,7.4703645,212.85,212.77,7.4703645]
[1737082682057,4.6998,212.81,212.77,7.4703645]
[1737082682945,4.6998,212.81,212.79,7.4703645]
[1737082685854,4.6993,212.83,212.79,7.4703645]
[1737082686051,4.6993,212.83,212.81,7.4703645]
[1737082686253,126.12753013,212.95,212.73,3.93731256]
[1737082686453,7.4703645,212.92,212.84,7.4703645]
[1737082687256,7.4703645,212.9,212.84,7.4703645]
[1737082687447,7.4703645,212.9,212.82,7.4703645]
[1737082687648,7.29475882,212.93,212.82,7.4703645]
[1737082687649,7.4703645,212.88,212.82,7.4703645]
[1737082688057,7.4703645,212.88,212.79,4.7001]
[1737082688058,7.4703645,212.88,212.8,7.4703645]
[1737082689157,4.6992,212.84,212.8,7.4703645]
[1737082690957,4.6993,212.83,212.72,1.4916]
[1737082691158,7.4703645,212.88,212.79,7.4703645]
[1737082691358,5.46652578,212.91,212.79,7.4703645]
[1737082691359,4.6984,212.87,212.79,7.4703645]
[1737082691562,7.4703645,212.88,212.79,7.4703645]
[1737082691756,7.4703645,212.88,212.81,7.4703645]
[1737082692259,4.6995,212.82,212.81,7.4703645]
[1737082692460,4.6995,212.82,212.77,4.7005]
[1737082692662,4.6995,212.82,212.8,7.4703645]
[1737082694461,7.4703645,212.89,212.8,7.4703645]
[1737082695055,4.6985,212.87,212.8,7.4703645]
[1737082695253,7.4703645,212.89,212.82,7.4703645]
[1737082695857,5.06,212.92,212.82,7.4703645]
[1737082696059,7.4703645,212.9,212.82,7.4703645]
[1737082696661,4.6982,212.88,212.82,7.4703645]
[1737082696862,7.4703645,212.92,212.84,7.4703645]
[1737082697164,7.4703645,212.9,212.84,7.4703645]
[1737082697462,4.6988,212.85,212.84,7.4703645]
[1737082698662,4.698,212.89,212.84,12.1691645]
[1737082698861,7.4703645,212.94,212.86,7.4703645]
[1737082699059,7.4703645,212.94,212.88,7.4703645]
[1737082699654,4.6979,212.9,212.85,4.6987]
[1737082699859,7.4703645,212.94,212.86,7.4703645]
[1737082700460,4.6981,212.89,212.86,7.4703645]
[1737082700663,7.4703645,212.94,212.86,7.4703645]
[1737082701562,7.4703645,212.92,212.76,3.0755]
[1737082701763,7.4703645,212.92,212.83,7.4703645]
[1737082702166,7.4703645,212.92,212.85,7.4703645]
[1737082702668,4.6977,212.9,212.85,7.4703645]
[1737082702859,7.4703645,212.93,212.85,7.4703645]
[1737082704062,4.6986,212.87,212.85,7.4703645]
[1737082705967,7.4703645,212.95,212.85,7.4703645]
[1737082706168,7.4703645,212.95,212.88,7.4703645]
[1737082706667,4.6979,212.89,212.88,7.4703645]
[1737082706870,4.6979,212.89,212.86,7.4703645]
[1737082708766,14.75773612,212.95,212.88,7.4703645]
[1737082708972,7.4703645,212.95,212.88,7.4703645]
[1737082709568,7.4703645,212.97,212.88,7.4703645]
[1737082710172,4.6973,212.92,212.88,7.4703645]
[1737082710373,4.6973,212.92,212.9,7.4703645]
[1737082713080,7.28013531,212.99,212.9,7.4703645]
[1737082713276,11.8506645,213.0,212.93,7.4703645]
[1737082713479,19.13079981,213.0,212.93,7.4703645]
[1737082713782,7.28013531,212.99,212.93,7.4703645]
[1737082713974,11.8506645,213.0,212.93,7.4703645]
[1737082714176,7.28013531,213.01,212.93,7.4703645]
[1737082714375,5.45177435,213.01,212.99,7.4703645]
[1737082715085,4.6945,213.05,212.99,12.1660645]
[1737082715277,4.6945,213.05,213.02,7.4703645]
[1737082717684,4.6945,213.05,212.98,4.6959]
[1737082717685,4.6949,213.03,213.0,7.4703645]
[1737082718087,7.4703645,213.07,213.0,7.4703645]
[1737082718886,4.6953,213.01,212.98,7.4703645]
[1737082722689,7.4703645,213.05,212.96,7.4703645]
[1737082722987,4.4396,213.1,212.98,7.4703645]
[1737082723185,4.6953,213.01,212.98,7.4703645]
[1737082723384,7.4703645,213.05,212.91,5.04]
[1737082723585,7.4703645,213.05,212.97,7.4703645]
[1737082723889,4.4396,213.1,212.99,7.4703645]
[1737082724186,7.4703645,213.07,212.99,7.4703645]
[1737082724386,7.4703645,213.08,212.99,7.4703645]
[1737082725083,7.4703645,213.08,213.01,7.4703645]
[1737082725486,7.25236866,213.09,213.01,7.4703645]
[1737082725682,7.25236866,213.09,213.03,7.4703645]
[1737082725890,5.4318105,213.12,213.05,7.4703645]
[1737082726190,4.694,213.08,212.91,5.04]
[1737082726390,14.72273316,213.13,213.06,7.4703645]
[1737082726586,7.4703645,213.13,213.06,7.4703645]
[1737082726789,4.6937,213.09,213.06,7.4703645]
[1737082726985,14.72273316,213.13,213.06,7.4703645]
[1737082727186,7.4703645,213.13,213.06,7.4703645]
[1737082727881,4.694,213.07,213.06,7.4703645]
[1737082728987,4.6942,213.06,213.04,7.4703645]
[1737082730483,4.694,213.07,213.04,7.4703645]
[1737082730686,7.4703645,213.13,213.04,7.4703645]
[1737082731289,4.6941,213.07,213.04,7.4703645]
[1737082731992,4.6942,213.06,213.04,7.4703645]
[1737082732292,7.4703645,213.14,213.04,7.4703645]
[1737082732488,7.4703645,213.14,213.07,7.4703645]
[1737082733486,7.4703645,213.16,213.09,7.4703645]
[1737082733689,4.693,213.12,213.09,7.4703645]
[1737082734189,94.97114584,213.21,213.11,7.4703645]
[1737082734386,94.97114584,213.21,213.13,7.4703645]
[1737082734583,102.44151034,213.21,213.13,7.4703645]
[1737082736181,4.6922,213.15,213.13,7.4703645]
[1737082736781,4.6914,213.19,213.13,7.4703645]
[1737082736981,102.44151034,213.21,213.13,7.4703645]
[1737082738087,4.6918,213.17,213.13,7.4703645]
[1737082738386,102.44151034,213.21,213.13,7.4703645]
[1737082739283,4.6924,213.15,213.13,7.4703645]
[1737082740191,4.6919,213.17,213.13,7.4703645]
[1737082740583,102.44151034,213.21,213.13,7.4703645]
[1737082740895,7.4703645,213.17,213.1,7.4703645]
[1737082741890,4.6926,213.14,213.1,7.4703645]
[1737082742391,7.4703645,213.19,213.1,7.4703645]
[1737082742596,4.6922,213.16,213.1,12.1634645]
[1737082743092,7.4703645,213.19,213.1,7.4703645]
[1737082743792,4.6926,213.14,213.1,7.4703645]
[1737082745491,4.6926,213.14,213.12,7.4703645]
[1737082746683,4.694,213.07,213.02,9.35]
[1737082746891,7.4703645,213.1,213.01,7.4703645]
[1737082747388,4.6946,213.05,213.01,7.4703645]
[1737082747584,4.6946,213.05,213.03,7.4703645]
[1737082747788,4.6946,213.05,213.0,4.6953]
[1737082747789,4.6946,213.05,213.01,7.4703645]
[1737082749993,4.6946,213.05,213.03,7.4703645]
[1737082755194,4.4692,213.13,213.03,7.4703645]
[1737082755402,4.4911,213.19,213.11,7.4703645]
[1737082755603,7.4703645,213.18,213.11,7.4703645]
[1737082756600,4.6928,213.13,213.11,7.4703645]
[1737082756995,7.4703645,213.18,213.11,7.4703645]
[1737082757803,7.4703645,213.16,213.09,7.4703645]
[1737082758302,4.6929,213.12,213.09,7.4703645]
[1737082760605,4.6931,213.11,213.09,7.4703645]
[1737082761505,7.4703645,213.14,213.05,7.4703645]
[1737082761706,7.4703645,213.12,213.05,7.4703645]
[1737082761899,7.4703645,213.1,213.03,7.4703645]
[1737082762098,7.4703645,213.1,213.01,1.5759]
[1737082762099,4.6939,213.08,213.01,9.0462645]
[1737082762302,7.4703645,213.1,213.01,9.0462645]
[1737082762709,4.6943,213.06,213.01,13.7414645]
[1737082763103,7.4703645,213.1,213.01,13.7414645]
[1737082763904,4.6945,213.05,213.01,7.4703645]
[1737082764109,5.04,213.12,212.95,5.27061333]
[1737082764110,7.4703645,213.06,212.95,5.27061333]
[1737082764310,7.4703645,213.06,212.98,7.4703645]
[1737082765211,4.6951,213.03,212.98,7.4703645]
[1737082767801,4.6944,213.06,213.0,12.1657645]
[1737082768005,7.4703645,213.08,213.0,12.1657645]
[1737082769109,4.6944,213.05,213.0,12.1657645]
[1737082770813,7.4703645,213.1,213.04,7.4703645]
[1737082771204,7.4703645,213.12,213.04,7.4703645]
[1737082771409,4.6933,213.1,213.06,7.4703645]
[1737082771810,7.4703645,213.14,213.06,7.4703645]
[1737082772015,4.6931,213.11,213.06,12.1644645]
[1737082772312,4.6931,213.11,213.08,7.4703645]
[1737082775414,4.6929,213.12,213.08,7.4703645]
[1737082779320,4.6926,213.14,213.1,7.4703645]
[1737082782817,7.4703645,213.17,213.1,7.4703645]
[1737082784115,4.6926,213.14,213.1,7.4703645]
[1737082791620,1.4279,213.18,213.07,7.4703645]
[1737082791915,1.4279,213.18,213.09,7.4703645]
[1737082791916,7.4703645,213.16,213.09,7.4703645]
[1737082792420,4.6925,213.14,213.09,7.4703645]
[1737082793015,4.6925,213.14,213.09,12.1638645]
[1737082793321,8.8982645,213.18,213.11,7.4703645]
[1737082793621,4.6922,213.16,213.11,12.1634645]
[1737082795822,4.692,213.17,213.13,7.4703645]
[1737082797415,7.4703645,213.21,213.13,7.4703645]
[1737082797617,4.6925,213.16,213.13,7.4703645]
[1737082798821,7.4703645,213.19,213.11,12.1636645]
[1737082799023,4.6927,213.15,213.11,12.1636645]
[1737082799224,7.4703645,213.17,213.09,7.4703645]
[1737082799626,4.6934,213.12,213.09,7.4703645]
[1737082799928,7.4703645,213.15,213.09,7.4703645]
[1737082800727,4.6936,213.11,213.09,7.4703645]
[1737082801122,7.4703645,213.15,213.09,7.4703645]
[1737082801319,4.6936,213.11,213.09,7.4703645]
[1737082801525,7.4703645,213.15,213.07,7.4703645]
[1737082801926,4.6938,213.1,213.07,7.4703645]
[1737082802530,4.6941,213.09,213.07,7.4703645]
[1737082802827,4.6941,213.09,213.05,7.4703645]
[1737082804129,7.4703645,213.11,212.96,4.3965]
[1737082804431,7.4703645,213.09,213.02,7.4703645]
[1737082805436,4.6944,213.07,213.02,7.4703645]
[1737082805637,7.4703645,213.09,213.02,7.4703645]
[1737082806138,4.6938,213.1,213.05,4.6949]
[1737082808127,7.28483735,213.14,213.06,7.4703645]
[1737082808337,4.6936,213.11,213.06,12.1649645]
[1737082808837,11.9199645,213.15,213.08,7.4703645]
[1737082809033,11.9199645,213.15,212.96,4.3965]
[1737082809034,7.28492726,213.15,213.1,7.4703645]
[1737082809233,7.4703645,213.2,213.12,7.4703645]
[1737082809431,14.75738134,213.2,213.12,12.1636645]
[1737082809740,20.21502308,213.2,213.12,12.1636645]
[1737082810535,7.28701684,213.19,213.12,12.1636645]
[1737082810839,7.4703645,213.2,213.12,12.1636645]
[1737082811039,4.6924,213.17,213.12,7.4703645]
[1737082811535,7.4703645,213.18,213.12,7.4703645]
[1737082812341,4.6925,213.16,213.12,7.4703645]
[1737082813534,4.6925,213.16,213.11,4.6935]
[1737082813740,4.6925,213.16,213.13,7.4703645]
[1737082814339,7.4703645,213.2,213.13,7.4703645]
[1737082814639,14.75738134,213.22,213.15,7.4703645]
[1737082814834,7.4703645,213.22,213.15,7.4703645]
[1737082815739,4.6921,213.18,213.13,7.4703645]
[1737082815944,7.4703645,213.18,213.05,9.5171]
[1737082816139,7.4703645,213.16,213.09,7.4703645]
[1737082816340,7.4703645,213.14,213.06,7.4703645]
[1737082817343,4.6936,213.11,213.06,12.1647645]
[1737082817537,12.74634982,213.26,213.06,7.4703645]
[1737082817538,7.4703645,213.12,213.06,7.4703645]
[1737082817944,4.6938,213.1,213.06,7.4703645]
[1737082818250,4.6938,213.1,212.99,4.5348]
[1737082818451,4.6942,213.08,213.04,7.4703645]
[1737082819347,4.6945,213.07,213.02,12.1658645]
[1737082819547,7.4703645,213.1,213.02,7.4703645]
[1737082820354,4.6942,213.08,213.04,7.4703645]
[1737082820853,7.4703645,213.13,213.04,12.1653645]
[1737082821046,5.46581218,213.15,213.06,7.4703645]
[1737082821246,12.93617668,213.15,213.06,7.4703645]
[1737082821548,12.93617668,213.15,213.08,7.4703645]
[1737082822044,4.6934,213.12,213.08,7.4703645]
[1737082823554,4.6934,213.12,213.05,11.63518971]
[1737082824152,4.4972,213.17,213.05,11.63518971]
[1737082824351,4.6931,213.13,213.08,4.6941]
[1737082824546,4.4972,213.17,213.05,11.63518971]
[1737082825247,4.6926,213.16,213.1,4.6937]
[1737082825552,4.4972,213.17,213.1,4.6937]
[1737082825750,4.6923,213.17,213.11,4.6934]
[1737082825952,5.04,213.19,213.11,4.6934]
[1737082826845,11.63518971,213.22,213.11,4.6934]
[1737082827151,4.6924,213.16,213.11,4.6934]
[1737082828552,7.29219605,213.2,213.08,11.63518971]
[1737082828754,7.29219605,213.2,213.12,4.6931]
[1737082829152,4.6919,213.19,213.14,4.6928]
[1737082830054,4.6919,213.19,213.13,4.693]
[1737082831154,4.692,213.18,213.13,4.693]
[1737082831852,4.6926,213.15,213.09,4.6937]
[1737082832452,4.6924,213.17,213.11,4.6935]
[1737082832956,7.2900631,213.2,213.08,11.63518971]
[1737082833154,4.692,213.18,213.08,11.63518971]
[1737082833953,4.692,213.18,213.12,4.6931]
[1737082834461,4.6929,213.15,213.1,4.6936]
[1737082834755,7.2900631,213.2,213.08,11.63518971]
[1737082835255,4.6928,213.15,213.09,4.6939]